{"text_format":"1","workbook":"xlsx","n_sheets":22,"sheets":["Forside","Læsevejledning","Tabel 1","Tabel 2","Tabel 3","Tabel 4","Tabel 5","Tabel 6","Tabel 7","Tabel 8","Tabel 9","Tabel 10","Tabel 11","Tabel 12","Tabel 13","Tabel 14","Tabel 15","Tabel 16","Tabel 17","Tabel 18","Tabel 19","Tabel 20"],"not_rendered":{"charts":0,"images":2,"macros":1,"external_links":0,"defined_names":3,"comments":0,"pivot_tables":0},"unopened":[],"bounds":{"document_bytes":16777216,"sheet_cells":100000,"rows_first":2000,"rows_last":500,"rows_between":2000,"halvings":0,"cell_chars":16384,"cell_head_chars":4096},"cells_cut":0,"cells_raw":0,"read":"whole","date_system":"1900"}

{"sheet":"Forside","index":0,"n_rows":31,"n_cols":2,"rows_kept":31,"cut":false,"hidden":false,"merged":[]}
[]
["Analyse: Indsatser i ældres sidste tid"]
[]
["Bilag 6: Sundhedsrådsspecifikke nøgletal"]
[]
[]
[]
[]
[]
["Indhold:"]
["Læsevejledning","Læsevejledning"]
["Tabel 1","Ældre fordelt efter, hvor mange akutte sygehusophold, de havde i det sidste leveår, køns- og aldersstandardiseret (2022-2024)"]
["Tabel 2","Antallet af akutte sygehusophold og forebyggelige sygehusophold pr. 1.000 ældre i det sidste leveår, køns- og aldersstandardiseret (2022-2024)"]
["Tabel 3","Andelen af ældre, der modtager indsatser i kommunen i den sidste levemåned, køns- og aldersstandardiseret (2022-2024)"]
["Tabel 4","Andelen af ældre, der modtager indsatser i almen praksis i den sidste levemåned, køns- og aldersstandardiseret (2022-2024)"]
["Tabel 5","Andelen af ældre, der får radiologiske undersøgelser i den sidste leveuge, køns- og aldersstandardiseret (2022-2024)"]
["Tabel 6","Andelen af ældre, hvor der er indikation på palliation i det sidste leveår, køns- og aldersstandardiseret (2022-2023)"]
["Tabel 7","Ældres alders- og kønsstandardiserede kontakt med sygehus, kommune og/eller almen praksis i den sidste levemåned, 2022-2024"]
["Tabel 8","Den alders- og kønsstandardiserede andel af ældre, der indløser recept på 5+ og 10+ læge-midler i de sidste tre måneder af livet (det sidste kvartal), samt andelen af ældre der indløser recept på statiner i det sidste kvartal og år, 2022-2023"]
["Tabel 9","Det køns- og aldersstandardiserede antal sygehusophold i det sidste leveår pr. 1.000 ældre samt det samlede antal kontakter, 2022-2024"]
["Tabel 10","Det køns- og aldersstandardiserede antal af kontakter med sygehuset uden fysisk fremmøde i det sidste leveår pr. 1.000 ældre samt det samlede antal kontakter, 2022-2024"]
["Tabel 11","Ældre fordelt efter, hvor mange akutte sygehusophold, de havde i det sidste leveår (2022-2024)"]
["Tabel 12","Antallet af akutte sygehusophold og forebyggelige sygehusophold pr. 1.000 ældre i det sidste leveår (2022-2024)"]
["Tabel 13","Andelen af ældre, der modtager indsatser i kommunen i den sidste levemåned (2022-2024)"]
["Tabel 14","Andelen af ældre, der modtager indsatser i almen praksis i den sidste levemåned (2022-2024)"]
["Tabel 15","Andelen af ældre, der får radiologiske undersøgelser i den sidste leveuge (2022-2024)"]
["Tabel 16","Andelen af ældre, hvor der er indikation på palliation i det sidste leveår (2022-2023)"]
["Tabel 17","Andelen af ældre, der er i kontakt med sygehus, kommune og/eller almen praksis i den sidste levemåned, 2022-2024"]
["Tabel 18","Andelen af ældre, der indløste recept på 5+ og 10+ lægemidler i de sidste tre måneder af livet (det sidste kvartal), samt andelen af ældre der indløser recept på statiner i henholdsvis det sidste kvartal og år, 2022-2023  "]
["Tabel 19","Antallet af sygehusophold i det sidste leveår pr. 1.000 ældre, 2022-2024"]
["Tabel 20","Antallet af kontakter med sygehuset uden fysisk fremmøde i det sidste leveår pr. 1.000 ældre samt det samlede antal kontakter, 2022-2024"]

{"sheet":"Læsevejledning","index":1,"n_rows":89,"n_cols":1,"rows_kept":89,"cut":false,"hidden":false,"merged":[]}
[]
["Læsevejledningen"]
[]
["Forsiden"]
[]
[]
[]
["I dette bilag præsenteres 20 tabeller for hver enkelt af de nye sundhedsråd. \nGenerelt er tallene i dette bilag afgrænset på samme måde som i hovedrapporten. I kapitel 3 og bilag 7: Metode er afgrænsninger og definitioner beskrevet nærmere. De første 10 tabeller inde-holder alders- og kønsstandardiserede opgørelser, mens de næste 10 tabeller viser de faktiske tal.\nGenerelt er tallene i dette bilag afgrænset på samme måde som i hovedrapporten. I bilag 7: Metode er afgrænsninger og definitioner beskrevet nærmere. Opgørelserne er alders- og kønsstandardiserede for tage højde for de forskelle, der skyldes den alders- og kønsmæssige sammensætning af gruppe af ældre. Læs mere om dette i hovedrapportens kapitel 3 og Bilag 7: Metode."]
["Ligesom i hovedrapporten er resultaterne i dette bilag opgjort samlet for årene 2022-2024. Ved at samle data for flere år bliver nøgletallene for hver enkelt sundhedsråd baseret på flere dødsfald, det giver mere robuste resultater, hvor eventuelle udsving og tilfældigheder mellem år, udjævnes. Fordi praksis og resultater kan ændre sig fra år til år, kan det også være interessant for det enkelte sundhedsråd at se sine egne opgørelser for de enkelte år. Derfor kan man i bilag 3 ”Sundhedsrådsspecifikke nøgletal” også for hver enkelt sundhedsråd finde andelen af ældre der døde på sygehuset for hvert af de tre år 2022-2024, men vær opmærksom på at tallene for hvert år er baseret på færre observationer og dermed er behæftet med mere usikkerhed."]
[]
[]
[{"$f":"HYPERLINK(\"#Tabel 1!A1\",(Forside!A12 &\":\"&\"  \"& Forside!B12))","v":"Tabel 1:  Ældre fordelt efter, hvor mange akutte sygehusophold, de havde i det sidste leveår, køns- og aldersstandardiseret (2022-2024)"}]
["I tabellen vises 80+ årige afgået ved døden i 2022-2024, fordelt efter hvor mange akutte syge-husophold de havde i det sidste leveår. Andelene er alders- og kønsstandardiserede og opgjort på sundhedsrådsniveau og landsplan. Det er disse tal, der ligger til grund for opgørelserne i figur 1 i Bilag 3 – Sådan placerer dit sundhedsråd sig."]
[]
[]
[{"$f":"HYPERLINK(\"#Tabel 1!A1\",(Forside!A13 &\":\"&\"  \"& Forside!B13))","v":"Tabel 2:  Antallet af akutte sygehusophold og forebyggelige sygehusophold pr. 1.000 ældre i det sidste leveår, køns- og aldersstandardiseret (2022-2024)"}]
["I tabellen vises antallet af akutte sygehusophold og forebyggelige sygehusophold pr. 1.000 æl-dre i det sidste leveår. Antallet er opgjort for afdøde ældre i 2022-2024. De forebyggelige syge-husophold er en delmængde af de akutte sygehusophold og er kendetegnet ved at være af mindst 4 timers varighed og have en forebyggelig diagnose indenfor de første 48 timer. Læs mere i Bilag 7: Metode. Andelene vises for sundhedsrådet og på landsplan. Andelene er alders- og kønsstandardiserede. Det er disse tal, der ligger til grund for opførelserne i figur 2 i Bilag 3 – Sådan placerer dit sundhedsråd sig."]
[]
[]
[{"$f":"HYPERLINK(\"#Tabel 1!A1\",(Forside!A14 &\":\"&\"  \"& Forside!B14))","v":"Tabel 3:  Andelen af ældre, der modtager indsatser i kommunen i den sidste levemåned, køns- og aldersstandardiseret (2022-2024)"}]
["I tabellen vises andelen af de afdøde ældre i 2022-2024, der modtog indsatser i kommunen i den sidste levemåned. Andelene er opgjort for hjemmesygepleje, hjemmepleje, plejehjem, ple-jehjem og hjemmepleje samlet, samt for de tre indsatser samlet (kommunal indsats i alt). 74 kommuner indgår i opgørelserne af hjemmepleje, hjemmesygepleje og hjemmepleje og pleje-hjem samlet, da de resterende kommuners data for 2022-2024 omkring hjemmepleje og hjem-mesygepleje ikke lever op til validerings- og komplethedskriterierne. Opgørelserne på sundheds-rådsniveau er baseret på de kommuner, hvor data lever op til kriterierne. Læs mere i Bilag 7: Metode omkring valideringskriterierne. Andelene er alders- og kønsstandardiserede og opgjort på sundhedsrådsniveau og landsplan. Det er disse opgørelser, der ligger til grund for figur 3 i Bilag 3 – Sådan placerer dit sundhedsråd sig. "]
[]
[]
[{"$f":"HYPERLINK(\"#Tabel 1!A1\",(Forside!A15 &\":\"&\"  \"& Forside!B15))","v":"Tabel 4:  Andelen af ældre, der modtager indsatser i almen praksis i den sidste levemåned, køns- og aldersstandardiseret (2022-2024)"}]
["I figuren vises andelen af de afdøde ældre i 2022-2024, der modtog indsatser i almen praksis i den sidste levemåned. Andelene er opgjort for besøg hos lægen, udebesøg og virtuel kontakt, samt for de tre indsatser samlet (almen praksis i alt). Andelene vises sundhedsrådet og på landsplan. Andelene er alders- og kønsstandardiserede. Det er disse opgørelser, der ligger til grund for figur 4 i Bilag 3 – Sådan placerer dit sundhedsråd sig. \n\n"]
[]
[]
[{"$f":"HYPERLINK(\"#Tabel 1!A1\",(Forside!A16 &\":\"&\"  \"& Forside!B16))","v":"Tabel 5:  Andelen af ældre, der får radiologiske undersøgelser i den sidste leveuge, køns- og aldersstandardiseret (2022-2024)"}]
["I figuren vises andelen af de afdøde ældre i 2022-2024, der fik en radiologisk undersøgelse i den sidste leveuge. Andelene er opgjort for radiologiske undersøgelser samlet, samt røntgenunder-søgelser, CT-skanninger og ultralydsundersøgelser. Andelene vises for sundhedsrådet og på landsplan. Andelene er alders- og kønsstandardiserede. Det er disse opgørelser, der ligger til grund for figur 5 i Bilag 3 – Sådan placerer dit sundhedsråd sig. "]
[]
[]
[{"$f":"HYPERLINK(\"#Tabel 1!A1\",(Forside!A17 &\":\"&\"  \"& Forside!B17))","v":"Tabel 6:  Andelen af ældre, hvor der er indikation på palliation i det sidste leveår, køns- og aldersstandardiseret (2022-2023)"}]
["I tabellen vises andelen af de afdøde ældre i 2022-2023, hvor vi har fundet indikation på en pal-liativ indsats i det sidste leveår. Andelene er baseret på 2022-2023 alene, da der på opgørelses-tidspunktet ikke var data fra Lægemiddelstatistikregistret tilgængeligt for 2024. Vi har set på, hvorvidt de ældre har været i kontakt med en afdeling/et team, der yder specialiseret palliativ behandling, om de har indløst recept med terminaltilskud, hvorvidt de har indløst recept på pallia-tive lægemidler som opioider eller midazolam ved injektionsvæske, og hvorvidt den ældre er blevet medicineret med opioider eller midazolam ved injektionsvæske på sygehuset i det sidste leveår. Derudover vises for den enkelte kommune andelen af ældre, der har én eller flere af de fire indikationer på palliation under betegnelsen ”indikation på palliation (inkl. opioi-der/midazolam, sygehus)”, samt den andel, der har modtaget specialiseret palliation, indløst recept med terminaltilskud eller indløst recept på opioider/midazolam ved injektionsvæske i det sidste leveår under betegnelsen ”indikation på palliation (ekskl. opioider/midazolam, sygehus)”. Den sidste opgørelse viser den andel af ældre, hvor der er indikation på palliation i primærsekto-ren (baseret på data for indløste recepter) og/eller specialiseret palliation. Læs mere i kapitel 8 i hovedrapporten og Bilag 7: Metode. Andelene vises for sundhedsrådet og på landsplan. Andele-ne er alders- og kønsstandardiserede. Det er disse opgørelser, der ligger til grund for figur 6 i Bilag 3 – Sådan placerer dit sundhedsråd sig."]
[]
[]
[{"$f":"HYPERLINK(\"#Tabel 1!A1\",(Forside!A18 &\":\"&\"  \"& Forside!B18))","v":"Tabel 7:  Ældres alders- og kønsstandardiserede kontakt med sygehus, kommune og/eller almen praksis i den sidste levemåned, 2022-2024"}]
["I denne tabel vises overlappet mellem indsatser i kommune, almen praksis og sygehuset i den sidste levemåned. Her kan man se, hvor mange sektorer, den ældre er i kontakt med. Af diskreti-onshensyn vises på sundhedsrådsniveau alene andelen, der er i kontakt med alle tre sektorer (sygehus, almen praksis, kommune), andelene, der i kontakt med to sektorer (almen prak-sis/kommune, sygehus/kommune og sygehus/almen praksis) samt ”resten”, som indeholder de resterende muligheder og de, der ingen indsats får i de tre sektorer i den sidste levemåned. An-delene er alders- og kønsstandardiserede og opgjort på sundhedsrådsniveau og landsplan."]
[]
[]
[{"$f":"HYPERLINK(\"#Tabel 1!A1\",(Forside!A19 &\":\"&\"  \"& Forside!B19))","v":"Tabel 8:  Den alders- og kønsstandardiserede andel af ældre, der indløser recept på 5+ og 10+ læge-midler i de sidste tre måneder af livet (det sidste kvartal), samt andelen af ældre der indløser recept på statiner i det sidste kvartal og år, 2022-2023"}]
["I tabellen vises andelen af ældre der indløser recept på henholdsvis 5+ lægemidler og 10+ læ-gemidler i de sidste tre måneder inden død. Andelen af ældre, der indløser recept på statiner – som er et de hyppigst brugte forebyggende hjælpemidler – i det sidste leveår og den sidste le-vemåned. Se kapitel 8 og Bilag 7: Metode for afgrænsninger. Andelene er alders- og kønsstandardiserede og opgjort på sundhedsrådsniveau og landsplan."]
[]
[]
[{"$f":"HYPERLINK(\"#Tabel 1!A1\",(Forside!A20 &\":\"&\"  \"& Forside!B20))","v":"Tabel 9:  Det køns- og aldersstandardiserede antal sygehusophold i det sidste leveår pr. 1.000 ældre samt det samlede antal kontakter, 2022-2024"}]
["I tabellen vises sygehusopholdene i det sidste leveår opdelt på varighed og hvorvidt opholdet kan betegnes som akut eller planlagt. Se mere om afgrænsning af sygehusophold i hovedrapportens kapitel 3 og Bilag 7: Metode. Antallene er alders- og kønsstandardiserede og opgjort på sund-hedsrådsniveau og landsplan."]
[]
[]
[{"$f":"HYPERLINK(\"#Tabel 1!A1\",(Forside!A21 &\":\"&\"  \"& Forside!B21))","v":"Tabel 10:  Det køns- og aldersstandardiserede antal af kontakter med sygehuset uden fysisk fremmøde i det sidste leveår pr. 1.000 ældre samt det samlede antal kontakter, 2022-2024"}]
["I tabellen vises antallet planlagte virtuelle kontakter og antallet af udebesøg i det sidste leveår pr. 1.000 ældre. I denne tabel vises også det samlede antal kontakter. Dvs. både sygehusophold (opgjort i tabel 10) og kontakter uden fysiske fremmøder. Antallene er alders- og kønsstandardi-serede og opgjort på sundhedsrådsniveau og landsplan."]
[]
[]
[{"$f":"Forside!A22 &\":\"&\"  \"& Forside!B22","v":"Tabel 11:  Ældre fordelt efter, hvor mange akutte sygehusophold, de havde i det sidste leveår (2022-2024)"}]
["I tabel 11 vises de ikke-standardiserede resultater i tabel 1. Tabellen viser altså de faktiske ande-le af ældre med henholdsvis 0,1 ,2 ,3 og 4+ akutte sygehusophold i det sidste leveår. Andelene er opgjort på sundhedsrådsniveau og på landsplan."]
[]
[]
[{"$f":"Forside!A23 &\":\"&\"  \"& Forside!B23","v":"Tabel 12:  Antallet af akutte sygehusophold og forebyggelige sygehusophold pr. 1.000 ældre i det sidste leveår (2022-2024)"}]
["I tabel 12 vises de ikke-standardiserede resultater i tabel 2. Tabellen viser altså de faktiske antal akutte sygehusophold og forebyggelige sygehusophold pr. 1.000 ældre i det sidste leveår. Andelene er opgjort på sundhedsrådsniveau og på landsplan"]
[]
[]
[{"$f":"Forside!A24 &\":\"&\"  \"& Forside!B24","v":"Tabel 13:  Andelen af ældre, der modtager indsatser i kommunen i den sidste levemåned (2022-2024)"}]
["I tabel 13 vises de ikke-standardiserede resultater i tabel 3. Tabellen viser altså de faktiske ande-le af ældre, der modtager indsatser i hjemmepleje, hjemmesygepleje og på plejehjemmet i den sidste levemåned. Opgørelserne er baseret på de 74 kommuner hvor data for hjemmepleje og hjemmesygepleje lever op til validerings- og komplethedskriterierne. Læs mere i Bilag 7: Metode omkring kriterierne. Andelene vises for sundhedsrådet og på landsplan. "]
[]
[]
[{"$f":"Forside!A25 &\":\"&\"  \"& Forside!B25","v":"Tabel 14:  Andelen af ældre, der modtager indsatser i almen praksis i den sidste levemåned (2022-2024)"}]
["I tabel 14 vises de ikke-standardiserede andele af ældre der er i kontakt med almen praksis i den sidste levemåned. Herunder den andel, der har besøg hos lægen, udebesøg eller virtuel kontakt med den praktiserende læge. Andelene vises for sundhedsrådet og på landsplan."]
[]
[]
[{"$f":"Forside!A26 &\":\"&\"  \"& Forside!B26","v":"Tabel 15:  Andelen af ældre, der får radiologiske undersøgelser i den sidste leveuge (2022-2024)"}]
["I tabel 15 vises de ikke-standardiserede resultater i tabel 5. Dvs. de faktiske andele af ældre, der får radiologiske ydelser i den sidste leveuge. Andelene vises for sundhedsrådet og på landsplan."]
[]
[]
[{"$f":"Forside!A27 &\":\"&\"  \"& Forside!B27","v":"Tabel 16:  Andelen af ældre, hvor der er indikation på palliation i det sidste leveår (2022-2023)"}]
["I tabel 16 vises de ikke-standardiserede resultater i tabel 6. Her vises altså de ikke-standardiserede opgørelser i forhold til andelen, hvor vi har fundet indikation på en palliativ ind-sats i det sidste leveår. Andelene vises på sundhedsrådsniveau og på landsplan. Se mere om-kring afgrænsning under beskrivelsen af tabel 6, samt Bilag 7: Metode og kapitel 8 i hovedrap-porten."]
[]
[]
[{"$f":"Forside!A28 &\":\"&\"  \"& Forside!B28","v":"Tabel 17:  Andelen af ældre, der er i kontakt med sygehus, kommune og/eller almen praksis i den sidste levemåned, 2022-2024"}]
["I tabel 17 vises de ikke-standardiserede resultater i tabel 7. Her vises altså andelen af ældre, der har haft kontakt med alle tre sektorer (sygehus, almen praksis og kommune) i den sidste leve-måned, andelen, der har haft kontakt med almen praksis og kommuner, samt de resterende kontaktkombinationer (herunder de der ingen kontakt har haft). Andelene vises for sundhedsrå-det og på landsplan."]
[]
[]
[{"$f":"Forside!A29 &\":\"&\"  \"& Forside!B29","v":"Tabel 18:  Andelen af ældre, der indløste recept på 5+ og 10+ lægemidler i de sidste tre måneder af livet (det sidste kvartal), samt andelen af ældre der indløser recept på statiner i henholdsvis det sidste kvartal og år, 2022-2023  "}]
["I denne tabel vises de ikke-standardiserede resultater i tabel 8. Se kapitel 8 og Bilag 7: Metode for afgrænsninger. Andelene er opgjort på sundhedsrådsniveau og landsplan."]
[]
[]
[{"$f":"Forside!A30 &\":\"&\"  \"& Forside!B30","v":"Tabel 19:  Antallet af sygehusophold i det sidste leveår pr. 1.000 ældre, 2022-2024"}]
["I tabellen vises de ikke-standardiserede resultater i tabel 9. Tabellen viser altså antallet af syge-husophold pr. 1.000 ældre i det sidste leveår fordelt på varighed, og hvorvidt opholdene er plan-lagte eller akutte. Andelene er opgjort på sundhedsrådsniveau og landsplan."]
[]
[]
[{"$f":"Forside!A31 &\":\"&\"  \"& Forside!B31","v":"Tabel 20:  Antallet af kontakter med sygehuset uden fysisk fremmøde i det sidste leveår pr. 1.000 ældre samt det samlede antal kontakter, 2022-2024"}]
["I tabellen vises de ikke-standardiserede resultater i tabel 10. Tabellen viser altså antallet af plan-lagte virtuelle kontakter og udebesøg pr. 1.000 ældre i det sidste leveår. Andelene er opgjort på sundhedsrådsniveau og landsplan."]

{"sheet":"Tabel 1","index":2,"n_rows":29,"n_cols":6,"rows_kept":29,"cut":false,"hidden":false,"merged":[[35,1,35,6],[33,1,33,6]]}
[]
[{"$f":"Forside!A12","v":"Tabel 1"},{"$f":"Forside!B12","v":"Ældre fordelt efter, hvor mange akutte sygehusophold, de havde i det sidste leveår, køns- og aldersstandardiseret (2022-2024)"}]
[]
["Forsiden"]
[]
[]
[]
["Ældre fordelt efter, hvor mange akutte sygehusophold, de havde i det sidste leveår, køns- og aldersstandardiseret (2022-2024)"]
[]
["Sundhedsråd","0 akutte sygehusophold","1 akut sygehusophold","2 akutte sygehusophold","3 akutte sygehusophold","4+ akutte sygehusophold"]
["Fyn (Syddanmark)",20,26.7,20.100000000000001,13.2,20.100000000000001]
["Horsens (Midtjylland)",23.2,31.4,19.5,10.5,15.4]
["Hovedstaden (Hovedstaden)",16,25.1,20.2,14.9,23.7]
["Hovedstaden Nord (Hovedstaden)",15.7,24.8,19.399999999999999,15.3,24.9]
["Hovedstaden Syd & Vest (Hovedstaden)",12.8,23.6,21.1,15.1,27.5]
["Kronjylland (Midtjylland)",25,30.7,19.100000000000001,11.6,13.6]
["Limfjorden (Nordjylland)",20.2,29.5,20.6,12.2,17.399999999999999]
["Midt (Midtjylland)",24.7,28,18.8,11.5,17.100000000000001]
["Midt- og Vestsjælland (Sjælland)",14.4,28.2,21.8,14.4,21.2]
["Nordsjælland (Hovedstaden)",16,24.2,20.399999999999999,14.1,25.3]
["Sydvestjylland (Syddanmark)",20.8,28.6,21,12.5,17.100000000000001]
["Sønderjylland (Syddanmark)",19.7,27.3,21.2,13,18.899999999999999]
["Trekantsområdet (Syddanmark)",19.7,27.6,20,12.9,19.8]
["Vendsyssel (Nordjylland)",20.7,28.3,20.399999999999999,12.1,18.5]
["Vestjylland (Midtjylland)",27.1,28.3,18.899999999999999,11.4,14.3]
["Østsjælland og øerne (Sjælland)",14.6,27.6,21.8,14.4,21.6]
["Aarhus (Midtjylland)",26.7,29.1,19.600000000000001,10.6,14]
["Landsgennemsnit",19.100000000000001,27.3,20.3,13.2,20]
["Kilde: Danmarks Statistik, Sundhedsdatastyrelsen og egne beregninger."]

{"sheet":"Tabel 2","index":3,"n_rows":30,"n_cols":3,"rows_kept":30,"cut":false,"hidden":false,"merged":[[34,1,34,3]]}
[]
[{"$f":"Forside!A13","v":"Tabel 2"},{"$f":"Forside!B13","v":"Antallet af akutte sygehusophold og forebyggelige sygehusophold pr. 1.000 ældre i det sidste leveår, køns- og aldersstandardiseret (2022-2024)"}]
[]
["Forsiden"]
[]
[]
[]
["Antallet af akutte sygehusophold og forebyggelige sygehusophold pr. 1.000 ældre i det sidste leveår, køns- og aldersstandardiseret (2022-2024)"]
[]
["Sundhedsråd","Akutte sygehusophold pr. 1.000 ældre","Forebyggelige sygehusophold pr. 1.000 ældre"]
["Fyn (Syddanmark)",2178.9,450]
["Horsens (Midtjylland)",1848.8,411]
["Hovedstaden (Hovedstaden)",2465.1999999999998,578.5]
["Hovedstaden Nord (Hovedstaden)",2519,572.20000000000005]
["Hovedstaden Syd & Vest (Hovedstaden)",2667.6,593.5]
["Kronjylland (Midtjylland)",1760.5,386.6]
["Limfjorden (Nordjylland)",2031.8,342.5]
["Midt (Midtjylland)",1968,404.3]
["Midt- og Vestsjælland (Sjælland)",2310.8000000000002,522.79999999999995]
["Nordsjælland (Hovedstaden)",2535.5,572.20000000000005]
["Sydvestjylland (Syddanmark)",1994.2,364.4]
["Sønderjylland (Syddanmark)",2100.3000000000002,456.5]
["Trekantsområdet (Syddanmark)",2149.6,390.3]
["Vendsyssel (Nordjylland)",2078.1,439.7]
["Vestjylland (Midtjylland)",1774.4,371.6]
["Østsjælland og øerne (Sjælland)",2342.6,564.4]
["Aarhus (Midtjylland)",1741.7,354.6]
["Landsgennemsnit",2189,470]
["Anm: De forebyggelige sygehusophold er en delmængde af de akutte sygehusophold. Læs mere i Bilag 7: Metode."]
["Kilde: Danmarks Statistik, Sundhedsdatastyrelsen og egne beregninger."]

{"sheet":"Tabel 3","index":4,"n_rows":30,"n_cols":6,"rows_kept":30,"cut":false,"hidden":false,"merged":[[36,1,36,4]]}
[]
[{"$f":"Forside!A14","v":"Tabel 3"},{"$f":"Forside!B14","v":"Andelen af ældre, der modtager indsatser i kommunen i den sidste levemåned, køns- og aldersstandardiseret (2022-2024)"}]
[]
["Forsiden"]
[]
[]
[]
["Andelen af ældre, der modtager indsatser i kommunen i den sidste levemåned, køns- og aldersstandardiseret (2022-2024)"]
[]
["Sundhedsråd","Hjemmesygepleje","Hjemmepleje","Plejehjem","Hjemmepleje eller plejehjem","Kommunal indsats i alt"]
["Fyn (Syddanmark)",80.099999999999994,42.5,36.200000000000003,78.7,92.2]
["Horsens (Midtjylland)",88.2,38.200000000000003,36.299999999999997,74.5,92.8]
["Hovedstaden (Hovedstaden)",51.1,30,45.8,75.8,88.5]
["Hovedstaden Nord (Hovedstaden)",74.599999999999994,39.700000000000003,38.9,78.599999999999994,89.6]
["Hovedstaden Syd & Vest (Hovedstaden)",74.900000000000006,39.5,37.1,76.5,89.8]
["Kronjylland (Midtjylland)",79.400000000000006,39.5,36.799999999999997,76.3,93.2]
["Limfjorden (Nordjylland)",80.3,36,43.2,79.2,92.9]
["Midt (Midtjylland)",73.5,39.799999999999997,41.2,81.099999999999994,93]
["Midt- og Vestsjælland (Sjælland)",77.599999999999994,51.9,29.3,81.2,90.4]
["Nordsjælland (Hovedstaden)",77.900000000000006,40.299999999999997,35.299999999999997,75.599999999999994,89.4]
["Sydvestjylland (Syddanmark)",82.2,41.2,37.200000000000003,78.400000000000006,93.1]
["Sønderjylland (Syddanmark)",79.400000000000006,46.6,33,79.5,91.4]
["Trekantsområdet (Syddanmark)",71.099999999999994,44.5,38.299999999999997,82.8,92.6]
["Vendsyssel (Nordjylland)",86.5,38,35.700000000000003,73.7,91.5]
["Vestjylland (Midtjylland)",82.8,40.1,43.4,83.5,93.5]
["Østsjælland og øerne (Sjælland)",70.2,43.2,34.700000000000003,77.900000000000006,90]
["Aarhus (Midtjylland)",59.9,34.299999999999997,47.2,81.5,90.5]
["Landsgennemsnit",74.2,40,38.200000000000003,78.2,91.1]
["Anm.: Hjemmesygepleje og hjemmepleje er opgjort baseret på data for 74 kommuner, da data ikke lever op til validerings- og komplethedskriterierne i de resterende kommuner. Læs mere i Bilag 7: Metode."]
["Kilde: Danmarks Statistik, Sundhedsdatastyrelsen og egne beregninger."]

{"sheet":"Tabel 4","index":5,"n_rows":29,"n_cols":5,"rows_kept":29,"cut":false,"hidden":false,"merged":[[35,1,35,6],[28,0,28,5]]}
[]
[{"$f":"Forside!A15","v":"Tabel 4"},{"$f":"Forside!B15","v":"Andelen af ældre, der modtager indsatser i almen praksis i den sidste levemåned, køns- og aldersstandardiseret (2022-2024)"}]
[]
["Forsiden"]
[]
[]
[]
["Andelen af ældre, der modtager indsatser i almen praksis i den sidste levemåned, køns- og aldersstandardiseret (2022-2024)"]
[]
["Sundhedsråd","Besøg hos lægen","Udebesøg","Virtuel kontakt","Almen praksis i alt"]
["Fyn (Syddanmark)",47,50.4,86,92.5]
["Horsens (Midtjylland)",47,60.6,84.3,93.6]
["Hovedstaden (Hovedstaden)",32.200000000000003,45.3,77.900000000000006,85.9]
["Hovedstaden Nord (Hovedstaden)",34.5,49.8,82.7,90.2]
["Hovedstaden Syd & Vest (Hovedstaden)",36.5,47.2,79.8,88.7]
["Kronjylland (Midtjylland)",47.4,65,87.1,94.5]
["Limfjorden (Nordjylland)",46.4,62.3,83.3,91.4]
["Midt (Midtjylland)",40.700000000000003,62.3,84.3,92.7]
["Midt- og Vestsjælland (Sjælland)",43,54.5,81.900000000000006,89.9]
["Nordsjælland (Hovedstaden)",39.799999999999997,50.3,82.8,90.4]
["Sydvestjylland (Syddanmark)",47.5,52.2,83.7,91.5]
["Sønderjylland (Syddanmark)",48.3,57.3,86.1,92.9]
["Trekantsområdet (Syddanmark)",45.7,53.3,84.6,92.2]
["Vendsyssel (Nordjylland)",50.6,60.6,84.2,91.7]
["Vestjylland (Midtjylland)",46.2,64,86.6,93.7]
["Østsjælland og øerne (Sjælland)",45.3,51.9,81.599999999999994,89.9]
["Aarhus (Midtjylland)",42.7,60.8,82.5,92]
["Landsgennemsnit",43,54.8,83.3,91.1]
["Kilde: Danmarks Statistik, Sundhedsdatastyrelsen og egne beregninger."]

{"sheet":"Tabel 5","index":6,"n_rows":29,"n_cols":5,"rows_kept":29,"cut":false,"hidden":false,"merged":[[28,0,28,5]]}
[]
[{"$f":"Forside!A16","v":"Tabel 5"},{"$f":"Forside!B16","v":"Andelen af ældre, der får radiologiske undersøgelser i den sidste leveuge, køns- og aldersstandardiseret (2022-2024)"}]
[]
["Forsiden"]
[]
[]
[]
["Andelen af ældre, der får radiologiske undersøgelser i den sidste leveuge, køns- og aldersstandardiseret (2022-2024)"]
[]
["Sundhedsråd","Røntgenundersøgelser","CT-skanninger","Ultralydsundersøgelser","Radiologiske undersøgelser i alt"]
["Fyn (Syddanmark)",20.399999999999999,11.2,8,27.3]
["Horsens (Midtjylland)",16.5,12.1,7.1,24.5]
["Hovedstaden (Hovedstaden)",24.6,11.9,5.5,29.8]
["Hovedstaden Nord (Hovedstaden)",25.1,14,6.4,31.8]
["Hovedstaden Syd & Vest (Hovedstaden)",27.2,13,7.1,33]
["Kronjylland (Midtjylland)",15.4,10.6,8.4,23.2]
["Limfjorden (Nordjylland)",18.600000000000001,13.4,7.4,28.2]
["Midt (Midtjylland)",17.399999999999999,13.2,9.1,26.1]
["Midt- og Vestsjælland (Sjælland)",23,15.4,6.1,31.5]
["Nordsjælland (Hovedstaden)",25.8,13.8,6,31.8]
["Sydvestjylland (Syddanmark)",18.600000000000001,12.3,5,25.6]
["Sønderjylland (Syddanmark)",22.2,14.8,6.2,29.9]
["Trekantsområdet (Syddanmark)",18.899999999999999,12.7,6,26]
["Vendsyssel (Nordjylland)",17.600000000000001,12.7,7.9,27.4]
["Vestjylland (Midtjylland)",15.1,12.2,6.5,22.9]
["Østsjælland og øerne (Sjælland)",22.7,13.9,5.0999999999999996,29.3]
["Aarhus (Midtjylland)",14.2,12.3,8.1,22.5]
["Landsgennemsnit",20.8,13,6.7,28.2]
["Kilde: Danmarks Statistik, Sundhedsdatastyrelsen og egne beregninger."]

{"sheet":"Tabel 6","index":7,"n_rows":30,"n_cols":7,"rows_kept":30,"cut":false,"hidden":false,"merged":[[47,1,47,3],[28,0,28,4],[29,0,29,3]]}
[]
[{"$f":"Forside!A17","v":"Tabel 6"},{"$f":"Forside!B17","v":"Andelen af ældre, hvor der er indikation på palliation i det sidste leveår, køns- og aldersstandardiseret (2022-2023)"}]
[]
["Forsiden"]
[]
[]
[]
["Andelen af ældre, hvor der er indikation på palliation i det sidste leveår, køns- og aldersstandardiseret (2022-2023)"]
[]
["Sundhedsråd","Specialiseret palliativ behandling","Terminaltilskud","Opioider/ Midazolam, apotek","Opioider/  Midazolam, sygehus","Minimum én indikator på palliation (ekskl. opioider/midazolam, sygehus)","Minimum én indikator på palliation (inkl. opioider/midazolam, sygehus)"]
["Fyn (Syddanmark)",5.3,26.3,45.5,29.8,52.3,70.400000000000006]
["Horsens (Midtjylland)",6.2,28.3,54.1,37.700000000000003,58.6,78.2]
["Hovedstaden (Hovedstaden)",9.1,21.8,35,43.7,44.5,72.7]
["Hovedstaden Nord (Hovedstaden)",4.7,25.2,42.5,40.200000000000003,48.3,75.7]
["Hovedstaden Syd & Vest (Hovedstaden)",5,24.8,38.5,42.7,44.7,74.5]
["Kronjylland (Midtjylland)",4.8,29.7,55.9,35.6,60.1,78.2]
["Limfjorden (Nordjylland)",9.8000000000000007,20.3,46.4,39.4,51.6,76.099999999999994]
["Midt (Midtjylland)",7.9,25.2,50.5,38.9,56.2,77.099999999999994]
["Midt- og Vestsjælland (Sjælland)",3.5,20.399999999999999,42,44.3,46.8,75.400000000000006]
["Nordsjælland (Hovedstaden)",6.3,28.1,45.6,41,50.8,77.5]
["Sydvestjylland (Syddanmark)",7.7,18.600000000000001,40.799999999999997,32.799999999999997,48.4,69.400000000000006]
["Sønderjylland (Syddanmark)",7.2,20.399999999999999,38.5,38.9,45.6,70.7]
["Trekantsområdet (Syddanmark)",6.2,26.4,42.7,31.4,51.9,70.7]
["Vendsyssel (Nordjylland)",9.1,16.100000000000001,42,37,46.7,71.599999999999994]
["Vestjylland (Midtjylland)",9,24.6,53.1,36.700000000000003,60.1,77.599999999999994]
["Østsjælland og øerne (Sjælland)",4.5,19.3,42.4,43.8,46.5,75.2]
["Aarhus (Midtjylland)",7.3,28.1,49.8,40,57.3,78.400000000000006]
["Landsgennemsnit",6.4,23.5,44.4,38.700000000000003,50.6,75.599999999999994]
["Anm.: Opioider/midazolam står for, at den ældre enten har indløst recept på opioider eller midazolam (opioider/midazolam, apotek) eller er blevet medicineret med det under ophold på sygehus (opioider/midazolam, sygehus). Den speciali-serede palliative behandling er identificeret med bidrag fra Videnscenter for Rehabilitering og Palliation (REHPA)."]
["Kilde: Danmarks Statistik, Sundhedsdatastyrelsen, REHPA og egne beregninger."]

{"sheet":"Tabel 7","index":8,"n_rows":30,"n_cols":6,"rows_kept":30,"cut":false,"hidden":false,"merged":[[41,1,41,3],[42,1,42,3],[28,0,28,5],[29,0,29,5]]}
[]
[{"$f":"Forside!A18","v":"Tabel 7"},{"$f":"Forside!B18","v":"Ældres alders- og kønsstandardiserede kontakt med sygehus, kommune og/eller almen praksis i den sidste levemåned, 2022-2024"}]
[]
["Forsiden"]
[]
[]
[]
["Ældres alders- og kønsstandardiserede kontakt med sygehus, kommune og/eller almen praksis i den sidste levemåned, 2022-2024"]
[]
["Sundhedsråd","Sygehus, almen praksis, kommune","Almen praksis, kommune","Sygehus, kommune","Sygehus, almen praksis","Resten"]
["Fyn (Syddanmark)",56.4,31.4,3.4,3.8,5.0999999999999996]
["Horsens (Midtjylland)",51.1,38.1,3,4,3.9]
["Hovedstaden (Hovedstaden)",55.8,23.7,7.4,5.6,7.5]
["Hovedstaden Nord (Hovedstaden)",58.1,25.8,4.4000000000000004,5.4,6.2]
["Hovedstaden Syd & Vest (Hovedstaden)",61.5,21.1,5.8,5.3,6.2]
["Kronjylland (Midtjylland)",52.8,37,2.2000000000000002,3.4,4.5999999999999996]
["Limfjorden (Nordjylland)",57.2,30.3,4.4000000000000004,3.6,4.4000000000000004]
["Midt (Midtjylland)",54.4,34,3.4,3.3,4.9000000000000004]
["Midt- og Vestsjælland (Sjælland)",60,24.2,5.3,5.6,4.9000000000000004]
["Nordsjælland (Hovedstaden)",59.9,23.9,4.3,5.9,6]
["Sydvestjylland (Syddanmark)",55.9,31.8,3.8,4.0999999999999996,4.4000000000000004]
["Sønderjylland (Syddanmark)",59.1,28.2,3.2,5.2,4.4000000000000004]
["Trekantsområdet (Syddanmark)",56.7,30.8,4.4000000000000004,3.4,4.5999999999999996]
["Vendsyssel (Nordjylland)",56.3,29.7,4.5,5.7,3.8]
["Vestjylland (Midtjylland)",50.8,38.6,2.7,3.6,4.3]
["Østsjælland og øerne (Sjælland)",59.1,24.1,6,6.1,4.8]
["Aarhus (Midtjylland)",48.9,37.5,3.2,4.4000000000000004,6.1]
["Landsgennemsnit",56.4,29.2,4.4000000000000004,4.5999999999999996,5.4]
["Anm.: Andelene er opgjort på data for de 74 kommuner, hvor hjemmepleje- og hjemmesygeplejedata lever op til valide-rings- og komplethedskriterierne beskrevet i Bilag 7: Metode. Opgørelserne er baseret på 80+ årige, der er døde i perioden 1.januar 2022 til og med 31.oktober 2024."]
["Kilde: Danmarks Statistik, Sundhedsdatastyrelsen og egne beregninger."]

{"sheet":"Tabel 8","index":9,"n_rows":30,"n_cols":5,"rows_kept":30,"cut":false,"hidden":false,"merged":[[42,1,42,3],[43,1,43,3],[28,0,28,5],[29,0,29,5]]}
[]
[{"$f":"Forside!A19","v":"Tabel 8"},{"$f":"Forside!B19","v":"Den alders- og kønsstandardiserede andel af ældre, der indløser recept på 5+ og 10+ læge-midler i de sidste tre måneder af livet (det sidste kvartal), samt andelen af ældre der indløser recept på statiner i det sidste kvartal og år, 2022-2023"}]
[]
["Forsiden"]
[]
[]
[]
["Andelen af ældre, hvor der er indikation på palliation i det sidste leveår, køns- og aldersstandardiseret (2022-2023)"]
[]
["Sundhedsråd","5+ lægemidler (Polyfarmaci i alt)","10+ lægemidler (Hyperpolyfarmaci)","Det sidste kvartal","Det sidste år"]
["Fyn (Syddanmark)",82.9,37.5,16.3,28.8]
["Horsens (Midtjylland)",84.2,40.200000000000003,20.5,32.9]
["Hovedstaden (Hovedstaden)",77.3,34.5,15.8,29]
["Hovedstaden Nord (Hovedstaden)",79.400000000000006,35.5,18.100000000000001,29.1]
["Hovedstaden Syd & Vest (Hovedstaden)",79.599999999999994,36.5,20,35]
["Kronjylland (Midtjylland)",86.3,44.5,20.100000000000001,32.4]
["Limfjorden (Nordjylland)",85,43.6,20.9,33.799999999999997]
["Midt (Midtjylland)",86.3,40.6,19.7,34.299999999999997]
["Midt- og Vestsjælland (Sjælland)",80.3,33.799999999999997,18.8,31.5]
["Nordsjælland (Hovedstaden)",79.900000000000006,36.9,17.100000000000001,29.5]
["Sydvestjylland (Syddanmark)",85.5,39.9,20.7,34]
["Sønderjylland (Syddanmark)",82.7,39.4,18.600000000000001,30.1]
["Trekantsområdet (Syddanmark)",83.2,36.5,18.600000000000001,31.1]
["Vendsyssel (Nordjylland)",82.6,36.5,17.899999999999999,29.9]
["Vestjylland (Midtjylland)",85.9,43.1,18.5,31]
["Østsjælland og øerne (Sjælland)",78.400000000000006,32.9,19.100000000000001,30.7]
["Aarhus (Midtjylland)",80.7,36,17.7,29.6]
["Landsgennemsnit",81.900000000000006,37.700000000000003,18.5,31]
["Anm.: Opgørelserne er lavet for de afdøde i 2022-2023, da der ikke var data tilgængeligt for Lægemiddelstatistikregistret i 2024 på opgørelsestidspunktet. I begge figurer er antibiotika ikke medtaget, da afgrænsningen tager udgangspunkt i de lægemidler, der inkluderes i Sundhedsdatastyrelsens opgørelse af polyfarmaci. Det sidste kvartal dækker over de sidste tre levemåneder."]
["Kilde: Danmarks Statistik, Sundhedsdatastyrelsen og egne beregninger."]

{"sheet":"Tabel 9","index":10,"n_rows":30,"n_cols":8,"rows_kept":30,"cut":false,"hidden":false,"merged":[[51,1,51,3],[52,1,52,3],[9,1,9,3],[9,4,9,6],[29,0,29,5]]}
[]
[{"$f":"Forside!A20","v":"Tabel 9"},{"$f":"Forside!B20","v":"Det køns- og aldersstandardiserede antal sygehusophold i det sidste leveår pr. 1.000 ældre samt det samlede antal kontakter, 2022-2024"}]
[]
["Forsiden"]
[]
[]
[]
["Det køns- og aldersstandardiserede antal af sygehusophold i det sidste leveår pr. 1.000 ældre samt det samlede antal kontakter, 2022-2024"]
[]
[" ","Akutte sygehusophold",null,null,"Planlagte sygehusophold",null,null," "]
["Sundhedsråd","Korte besøg","Længerevarende besøg","Indlæggelser","Korte besøg","Længerevarende besøg","Indlæggelser","Samlet"]
["Fyn (Syddanmark)",321.5,405.2,1452.2,4092.5,880.2,100.5,7252.1]
["Horsens (Midtjylland)",189.6,255.6,1403.7,3284.6,636,75.400000000000006,5844.9]
["Hovedstaden (Hovedstaden)",297.8,465.9,1701.6,3855.7,712.3,131.1,7164.4]
["Hovedstaden Nord (Hovedstaden)",243.3,538.9,1736.7,4191.8,606,126.4,7443.1]
["Hovedstaden Syd & Vest (Hovedstaden)",339.2,474.1,1854.3,3949.2,734.4,116.4,7467.6]
["Kronjylland (Midtjylland)",182.7,326.3,1251.5,2923.3,778.9,60.5,5523.2]
["Limfjorden (Nordjylland)",221.6,353.7,1456.5,3268.9,598.6,75.099999999999994,5974.4]
["Midt (Midtjylland)",139.6,260.2,1568.3,3253.6,441.6,88.1,5751.4]
["Midt- og Vestsjælland (Sjælland)",240.9,401.2,1668.7,3382.4,653.70000000000005,108.4,6455.3]
["Nordsjælland (Hovedstaden)",314,555.9,1665.5,3846.8,525.6,129.30000000000001,7037.1]
["Sydvestjylland (Syddanmark)",195,289.2,1510,3820.8,669.5,134.4,6618.9]
["Sønderjylland (Syddanmark)",282.7,296,1521.6,3982.2,685.3,94.9,6862.7]
["Trekantsområdet (Syddanmark)",295.60000000000002,314.89999999999998,1539.2,4030.7,572.6,107.2,6860.2]
["Vendsyssel (Nordjylland)",261.7,371.7,1444.7,3102.7,399,83.1,5662.9]
["Vestjylland (Midtjylland)",129.69999999999999,351.6,1293,2996,863.6,79.3,5713.2]
["Østsjælland og øerne (Sjælland)",236.3,404.1,1702.2,3586.5,414.1,112.3,6455.5]
["Aarhus (Midtjylland)",196.4,219,1326.3,2999.9,589.5,76.900000000000006,5408]
["Landsgennemsnit",246.2,387,1556.2,3620.8,639.4,103,6552.6]
["Kilde: Danmarks Statistik, Sundhedsdatastyrelsen og egne beregninger."]

{"sheet":"Tabel 10","index":11,"n_rows":30,"n_cols":5,"rows_kept":30,"cut":false,"hidden":false,"merged":[[28,0,28,4],[29,0,29,4]]}
[]
[{"$f":"Forside!A21","v":"Tabel 10"},{"$f":"Forside!B21","v":"Det køns- og aldersstandardiserede antal af kontakter med sygehuset uden fysisk fremmøde i det sidste leveår pr. 1.000 ældre samt det samlede antal kontakter, 2022-2024"}]
[]
["Forsiden"]
[]
[]
[]
["Det køns- og aldersstandardiserede antal af kontakter med sygehuset uden fysisk fremmøde i det sidste leveår pr. 1.000 ældre samt det samlede antal kontakter, 2022-2024"]
[]
["Sundhedsråd","Planlagt virtuel kontakt","Planlagte udebesøg","Samlet","Alle kontakter"]
["Fyn (Syddanmark)",1302.9000000000001,229.8,1532.7,8784.7999999999993]
["Horsens (Midtjylland)",744.7,230.8,975.5,6820.4]
["Hovedstaden (Hovedstaden)",2668.3,614.70000000000005,3283,10447.4]
["Hovedstaden Nord (Hovedstaden)",3000.2,339.6,3339.8,10782.9]
["Hovedstaden Syd & Vest (Hovedstaden)",2733.7,450.9,3184.6,10652.2]
["Kronjylland (Midtjylland)",1200.4000000000001,135.4,1335.8,6859]
["Limfjorden (Nordjylland)",1913.9,262.7,2176.6,8151]
["Midt (Midtjylland)",1067.5,386,1453.5,7204.9]
["Midt- og Vestsjælland (Sjælland)",2207.1,206.4,2413.5,8868.7999999999993]
["Nordsjælland (Hovedstaden)",2524.1999999999998,514,3038.2,10075.299999999999]
["Sydvestjylland (Syddanmark)",1550.1,287.2,1837.3,8456.2000000000007]
["Sønderjylland (Syddanmark)",1163.0999999999999,235.4,1398.5,8261.2000000000007]
["Trekantsområdet (Syddanmark)",1257.5999999999999,230.4,1488,8348.2000000000007]
["Vendsyssel (Nordjylland)",1615.5,376.9,1992.4,7655.3]
["Vestjylland (Midtjylland)",1149.2,120.5,1269.7,6982.9]
["Østsjælland og øerne (Sjælland)",2385.6,295.7,2681.3,9136.7999999999993]
["Aarhus (Midtjylland)",1042.7,1232.2,2274.9,7682.9]
["Landsgennemsnit",1863.4,351.4,2214.8000000000002,8767.4]
["Anm.: Alle kontakter dækker over det samlede antal kontakter opgjort i tabel 9 og 10. Alle kontakter på landsplan er undtaget akut virtuel kontakt og akutte udebesøg, da det ikke opgøres i bilagene. Det er grunden til at det samlede antal afviger fra opgørelsen i hovedrapporten."]
["Kilde: Danmarks Statistik, Sundhedsdatastyrelsen og egne beregninger."]

{"sheet":"Tabel 11","index":12,"n_rows":29,"n_cols":6,"rows_kept":29,"cut":false,"hidden":false,"merged":[]}
[]
[{"$f":"Forside!A22","v":"Tabel 11"},{"$f":"Forside!B22","v":"Ældre fordelt efter, hvor mange akutte sygehusophold, de havde i det sidste leveår (2022-2024)"}]
[]
["Forsiden"]
[]
[]
[]
["Ældre fordelt efter, hvor mange akutte sygehusophold, de havde i det sidste leveår (2022-2024)"]
[]
["Sundhedsråd","0 akutte sygehusophold","1 akut sygehusophold","2 akutte sygehusophold","3 akutte sygehusophold","4+ akutte sygehusophold"]
["Fyn (Syddanmark)",20,26.7,20.100000000000001,13.2,20.100000000000001]
["Horsens (Midtjylland)",23.1,31.3,19.5,10.5,15.5]
["Hovedstaden (Hovedstaden)",16.399999999999999,25.3,20.2,14.9,23.4]
["Hovedstaden Nord (Hovedstaden)",16.100000000000001,24.9,19.399999999999999,15.3,24.4]
["Hovedstaden Syd & Vest (Hovedstaden)",12.8,23.5,21,15.1,27.5]
["Kronjylland (Midtjylland)",24.8,30.6,19.100000000000001,11.7,13.8]
["Limfjorden (Nordjylland)",20.2,29.5,20.6,12.2,17.5]
["Midt (Midtjylland)",24.7,28,18.8,11.5,17.100000000000001]
["Midt- og Vestsjælland (Sjælland)",14.3,28.2,21.8,14.4,21.3]
["Nordsjælland (Hovedstaden)",15.9,24.1,20.399999999999999,14.2,25.4]
["Sydvestjylland (Syddanmark)",20.7,28.6,21,12.5,17.2]
["Sønderjylland (Syddanmark)",19.5,27.3,21.2,13.1,19]
["Trekantsområdet (Syddanmark)",19.600000000000001,27.6,20,12.9,19.899999999999999]
["Vendsyssel (Nordjylland)",20.7,28.3,20.5,12.1,18.5]
["Vestjylland (Midtjylland)",27,28.4,19,11.4,14.2]
["Østsjælland og øerne (Sjælland)",14.4,27.5,21.8,14.5,21.8]
["Aarhus (Midtjylland)",26.9,29.2,19.600000000000001,10.5,13.7]
["Landsgennemsnit",19.100000000000001,27.3,20.3,13.2,20]
["Kilde: Danmarks Statistik, Sundhedsdatastyrelsen og egne beregninger."]

{"sheet":"Tabel 12","index":13,"n_rows":30,"n_cols":3,"rows_kept":30,"cut":false,"hidden":false,"merged":[]}
[]
[{"$f":"Forside!A23","v":"Tabel 12"},{"$f":"Forside!B23","v":"Antallet af akutte sygehusophold og forebyggelige sygehusophold pr. 1.000 ældre i det sidste leveår (2022-2024)"}]
[]
["Forsiden"]
[]
[]
[]
["Antallet af akutte sygehusophold og forebyggelige sygehusophold pr. 1.000 ældre i det sidste leveår (2022-2024)"]
[]
["Sundhedsråd","Akutte sygehusophold pr. 1.000 ældre","Forebyggelige sygehusophold pr. 1.000 ældre"]
["Fyn (Syddanmark)",2175.1999999999998,450.2]
["Horsens (Midtjylland)",1847.7,411.5]
["Hovedstaden (Hovedstaden)",2434.4,571.79999999999995]
["Hovedstaden Nord (Hovedstaden)",2478.4,570.70000000000005]
["Hovedstaden Syd & Vest (Hovedstaden)",2670.2,593.20000000000005]
["Kronjylland (Midtjylland)",1777.7,388.6]
["Limfjorden (Nordjylland)",2033.2,343.1]
["Midt (Midtjylland)",1963.6,405.1]
["Midt- og Vestsjælland (Sjælland)",2324.8000000000002,522.5]
["Nordsjælland (Hovedstaden)",2551.5,572.4]
["Sydvestjylland (Syddanmark)",1999.8,364.8]
["Sønderjylland (Syddanmark)",2109.6999999999998,457.5]
["Trekantsområdet (Syddanmark)",2158.6999999999998,390.4]
["Vendsyssel (Nordjylland)",2077.3000000000002,440.6]
["Vestjylland (Midtjylland)",1772.3,373.3]
["Østsjælland og øerne (Sjælland)",2361.4,563.6]
["Aarhus (Midtjylland)",1726.1,352.9]
["Landsgennemsnit",2189,470]
["Anm: De forebyggelige sygehusophold er en delmængde af de akutte sygehusophold. Læs mere i Bilag 7: Metode."]
["Kilde: Danmarks Statistik, Sundhedsdatastyrelsen og egne beregninger."]

{"sheet":"Tabel 13","index":14,"n_rows":30,"n_cols":6,"rows_kept":30,"cut":false,"hidden":false,"merged":[]}
[]
[{"$f":"Forside!A24","v":"Tabel 13"},{"$f":"Forside!B24","v":"Andelen af ældre, der modtager indsatser i kommunen i den sidste levemåned (2022-2024)"}]
[]
["Forsiden"]
[]
[]
[]
["Andelen af ældre, der modtager indsatser i kommunen i den sidste levemåned (2022-2024)"]
[]
["Sundhedsråd","Hjemmesygepleje","Hjemmepleje","Plejehjem","Hjemmepleje eller plejehjem","Kommunal indsats i alt"]
["Fyn (Syddanmark)",80.099999999999994,42.5,36.299999999999997,78.8,92.2]
["Horsens (Midtjylland)",88.3,38.1,36.200000000000003,74.3,92.8]
["Hovedstaden (Hovedstaden)",50.7,29.9,46.4,76.2,88.6]
["Hovedstaden Nord (Hovedstaden)",75,39.700000000000003,39.9,79.599999999999994,90.1]
["Hovedstaden Syd & Vest (Hovedstaden)",74.900000000000006,39.5,37,76.5,89.8]
["Kronjylland (Midtjylland)",79.5,39.6,36.4,76,93.1]
["Limfjorden (Nordjylland)",80.3,36,43.2,79.3,92.9]
["Midt (Midtjylland)",73.5,39.799999999999997,41.4,81.2,93]
["Midt- og Vestsjælland (Sjælland)",77.400000000000006,51.8,28.9,80.7,90.1]
["Nordsjælland (Hovedstaden)",77.8,40.299999999999997,34.9,75.2,89.1]
["Sydvestjylland (Syddanmark)",82.2,41,37.1,78.2,93.2]
["Sønderjylland (Syddanmark)",79.400000000000006,46.5,32.799999999999997,79.3,91.3]
["Trekantsområdet (Syddanmark)",71.099999999999994,44.4,38.1,82.5,92.5]
["Vendsyssel (Nordjylland)",86.8,38.1,35.799999999999997,73.900000000000006,91.7]
["Vestjylland (Midtjylland)",82.9,40.1,43.5,83.6,93.5]
["Østsjælland og øerne (Sjælland)",70.099999999999994,43.2,34.1,77.2,89.6]
["Aarhus (Midtjylland)",59.7,34.200000000000003,47.7,81.8,90.6]
["Landsgennemsnit",74.2,40,38.200000000000003,78.2,91.1]
["Anm.: Hjemmesygepleje og hjemmepleje er kun opgjort for 74 kommuner pga. at data ikke lever op til validerings- og komplethedskriterierne i de resterende kommuner. Læs mere i Bilag 7: Metode."]
["Kilde: Danmarks Statistik, Sundhedsdatastyrelsen og egne beregninger."]

{"sheet":"Tabel 14","index":15,"n_rows":29,"n_cols":5,"rows_kept":29,"cut":false,"hidden":false,"merged":[[64,1,64,3],[65,1,65,3],[28,0,28,5]]}
[]
[{"$f":"Forside!A25","v":"Tabel 14"},{"$f":"Forside!B25","v":"Andelen af ældre, der modtager indsatser i almen praksis i den sidste levemåned (2022-2024)"}]
[]
["Forsiden"]
[]
[]
[]
["Andelen af ældre, der modtager indsatser i almen praksis i den sidste levemåned (2022-2024)"]
[]
["Sundhedsråd","Besøg hos lægen","Udebesøg","Virtuel kontakt","Almen praksis i alt"]
["Fyn (Syddanmark)",92.5,47,50.4,86]
["Horsens (Midtjylland)",93.6,47,60.6,84.3]
["Hovedstaden (Hovedstaden)",86.1,32.1,45.5,78.099999999999994]
["Hovedstaden Nord (Hovedstaden)",90.4,34.1,50.4,83.1]
["Hovedstaden Syd & Vest (Hovedstaden)",88.7,36.6,47.2,79.8]
["Kronjylland (Midtjylland)",94.5,47.6,64.900000000000006,87.1]
["Limfjorden (Nordjylland)",91.4,46.5,62.3,83.3]
["Midt (Midtjylland)",92.7,40.6,62.5,84.3]
["Midt- og Vestsjælland (Sjælland)",89.8,43.2,54.1,81.7]
["Nordsjælland (Hovedstaden)",90.4,39.9,50,82.7]
["Sydvestjylland (Syddanmark)",91.5,47.7,52.2,83.7]
["Sønderjylland (Syddanmark)",92.9,48.4,57.3,86.1]
["Trekantsområdet (Syddanmark)",92.1,45.8,53.2,84.6]
["Vendsyssel (Nordjylland)",91.8,50.6,60.7,84.2]
["Vestjylland (Midtjylland)",93.7,46.2,64.099999999999994,86.7]
["Østsjælland og øerne (Sjælland)",89.8,45.5,51.4,81.3]
["Aarhus (Midtjylland)",92,42.5,61,82.7]
["Landsgennemsnit",91.1,43,54.8,83.3]
["Kilde: Danmarks Statistik, Sundhedsdatastyrelsen og egne beregninger."]

{"sheet":"Tabel 15","index":16,"n_rows":29,"n_cols":5,"rows_kept":29,"cut":false,"hidden":false,"merged":[[64,1,64,3],[65,1,65,3],[28,0,28,5]]}
[]
[{"$f":"Forside!A26","v":"Tabel 15"},{"$f":"Forside!B26","v":"Andelen af ældre, der får radiologiske undersøgelser i den sidste leveuge (2022-2024)"}]
[]
["Forsiden"]
[]
[]
[]
["Andelen af ældre, der får radiologiske undersøgelser i den sidste leveuge (2022-2024)"]
[]
["Sundhedsråd","Røntgenundersøgelser","CT-skanninger","Ultralydsundersøgelser","Radiologiske undersøgelser i alt"]
["Fyn (Syddanmark)",20.399999999999999,11.2,8,27.3]
["Horsens (Midtjylland)",16.600000000000001,12.1,7.1,24.5]
["Hovedstaden (Hovedstaden)",24.2,11.9,5.5,29.4]
["Hovedstaden Nord (Hovedstaden)",24.6,13.7,6.2,31.2]
["Hovedstaden Syd & Vest (Hovedstaden)",27.1,13,7.1,33]
["Kronjylland (Midtjylland)",15.4,10.7,8.4,23.3]
["Limfjorden (Nordjylland)",18.600000000000001,13.4,7.4,28.2]
["Midt (Midtjylland)",17.399999999999999,13.1,9.1,26.1]
["Midt- og Vestsjælland (Sjælland)",23.1,15.6,6.2,31.7]
["Nordsjælland (Hovedstaden)",26,13.8,6.1,31.9]
["Sydvestjylland (Syddanmark)",18.7,12.4,5,25.7]
["Sønderjylland (Syddanmark)",22.3,14.8,6.3,30]
["Trekantsområdet (Syddanmark)",18.899999999999999,12.8,6,26.1]
["Vendsyssel (Nordjylland)",17.7,12.7,7.9,27.5]
["Vestjylland (Midtjylland)",15.1,12.1,6.4,22.9]
["Østsjælland og øerne (Sjælland)",22.9,14.1,5.2,29.6]
["Aarhus (Midtjylland)",14,12.2,8,22.3]
["Landsgennemsnit",20.8,13,6.7,28.2]
["Kilde: Danmarks Statistik, Sundhedsdatastyrelsen og egne beregninger."]

{"sheet":"Tabel 16","index":17,"n_rows":30,"n_cols":7,"rows_kept":30,"cut":false,"hidden":false,"merged":[[41,1,41,3],[42,1,42,3],[28,0,28,4],[29,0,29,3]]}
[]
[{"$f":"Forside!A27","v":"Tabel 16"},{"$f":"Forside!B27","v":"Andelen af ældre, hvor der er indikation på palliation i det sidste leveår (2022-2023)"}]
[]
["Forsiden"]
[]
[]
[]
["Andelen af ældre, hvor der er indikation på palliation i det sidste leveår (2022-2023)"]
[]
["Sundhedsråd","Specialiseret palliativ behandling","Terminaltilskud","Opioider/ Midazolam, apotek","Opioider/  Midazolam, sygehus","Minimum én indikator på palliation (ekskl. opioider/midazolam, sygehus)","Minimum én indikator på palliation (inkl. opioider/midazolam, sygehus)"]
["Fyn (Syddanmark)",5.2,26.2,45.6,29.8,52.3,70.400000000000006]
["Horsens (Midtjylland)",6.2,28.4,54.1,37.799999999999997,58.6,78.2]
["Hovedstaden (Hovedstaden)",9,21.9,35.9,43.2,45.2,72.8]
["Hovedstaden Nord (Hovedstaden)",4.4000000000000004,25.2,43.5,39.5,49.1,75.900000000000006]
["Hovedstaden Syd & Vest (Hovedstaden)",5.0999999999999996,25,38.6,42.8,44.8,74.7]
["Kronjylland (Midtjylland)",4.8,30,55.4,36,59.7,78.099999999999994]
["Limfjorden (Nordjylland)",9.6999999999999993,20.2,46.3,39.299999999999997,51.5,76]
["Midt (Midtjylland)",7.7,25,50.7,38.6,56.3,77.099999999999994]
["Midt- og Vestsjælland (Sjælland)",3.6,20.5,41.3,44.8,46.2,75.3]
["Nordsjælland (Hovedstaden)",6.4,28.1,45.4,41.3,50.6,77.5]
["Sydvestjylland (Syddanmark)",7.7,18.600000000000001,40.700000000000003,33,48.3,69.5]
["Sønderjylland (Syddanmark)",7.3,20.5,38.299999999999997,39.1,45.4,70.8]
["Trekantsområdet (Syddanmark)",6.2,26.4,42.6,31.4,51.8,70.7]
["Vendsyssel (Nordjylland)",9,15.9,42.1,37,46.7,71.599999999999994]
["Vestjylland (Midtjylland)",9,24.6,53,36.700000000000003,60.1,77.599999999999994]
["Østsjælland og øerne (Sjælland)",4.5999999999999996,19.5,41.9,44.2,46.2,75.2]
["Aarhus (Midtjylland)",7.2,28.1,50.1,39.9,57.5,78.400000000000006]
["Landsgennemsnit",6.4,23.5,44.4,38.700000000000003,50.6,75.599999999999994]
["Anm.: Opioider/midazolam står for, at den ældre enten har indløst recept på opioider eller midazolam (opioider/midazolam, apotek) eller er blevet medicineret med det under ophold på sygehus (opioider/midazolam, sygehus). Den speciali-serede palliative behandling er identificeret med bidrag fra Videnscenter for Rehabilitering og Palliation (REHPA)."]
["Kilde: Danmarks Statistik, Sundhedsdatastyrelsen, REHPA og egne beregninger."]

{"sheet":"Tabel 17","index":18,"n_rows":30,"n_cols":6,"rows_kept":30,"cut":false,"hidden":false,"merged":[[64,1,64,3],[65,1,65,3],[28,0,28,5],[29,0,29,5]]}
[]
[{"$f":"Forside!A28","v":"Tabel 17"},{"$f":"Forside!B28","v":"Andelen af ældre, der er i kontakt med sygehus, kommune og/eller almen praksis i den sidste levemåned, 2022-2024"}]
[]
["Forsiden"]
[]
[]
[]
["Andelen af ældre, der er i kontakt med sygehus, kommune og/eller almen praksis i den sidste levemåned, 2022-2024"]
[]
["Sundhedsråd","Sygehus, almen praksis, kommune","Almen praksis, kommune","Sygehus, kommune","Sygehus, almen praksis","Resten"]
["Fyn (Syddanmark)",56.4,31.3,3.5,3.9,5]
["Horsens (Midtjylland)",51.2,38,3,4.0999999999999996,3.6]
["Hovedstaden (Hovedstaden)",55.5,24.4,7.3,5.5,7.3]
["Hovedstaden Nord (Hovedstaden)",57.8,26.8,4.3,5.2,6]
["Hovedstaden Syd & Vest (Hovedstaden)",61.7,20.9,5.9,5.5,6.1]
["Kronjylland (Midtjylland)",53.2,36.4,2.2000000000000002,3.5,4.7]
["Limfjorden (Nordjylland)",57.3,30.2,4.4000000000000004,3.8,4.3]
["Midt (Midtjylland)",54.3,34.200000000000003,3.4,3.3,4.9000000000000004]
["Midt- og Vestsjælland (Sjælland)",60.1,23.8,5.3,5.8,5]
["Nordsjælland (Hovedstaden)",60,23.5,4.4000000000000004,6.5,5.7]
["Sydvestjylland (Syddanmark)",55.7,32.200000000000003,3.8,4.5,3.8]
["Sønderjylland (Syddanmark)",59.1,28.1,3.1,5.5,4.2]
["Trekantsområdet (Syddanmark)",56.8,30.5,4.5,3.7,4.5999999999999996]
["Vendsyssel (Nordjylland)",56.1,30.1,4.5,5.6,3.7]
["Vestjylland (Midtjylland)",50.8,38.6,2.7,3.9,3.9]
["Østsjælland og øerne (Sjælland)",59.3,23.4,6,6.6,4.8]
["Aarhus (Midtjylland)",48.6,37.799999999999997,3.2,4.3,6.1]
["Landsgennemsnit",56.4,29.2,4.4000000000000004,4.5999999999999996,5.4]
["Anm.: Andelene er opgjort på data for de 74 kommuner, hvor hjemmepleje- og hjemmesygeplejedata lever op til valide-rings- og komplethedskriterierne beskrevet i Bilag 7: Metode. Opgørelserne er baseret på 80+ årige, der er døde i perioden 1.januar 2022 til og med 31.oktober 2024."]
["Kilde: Danmarks Statistik, Sundhedsdatastyrelsen og egne beregninger."]

{"sheet":"Tabel 18","index":19,"n_rows":30,"n_cols":5,"rows_kept":30,"cut":false,"hidden":false,"merged":[[28,0,28,5],[29,0,29,5]]}
[]
[{"$f":"Forside!A29","v":"Tabel 18"},{"$f":"Forside!B29","v":"Andelen af ældre, der indløste recept på 5+ og 10+ lægemidler i de sidste tre måneder af livet (det sidste kvartal), samt andelen af ældre der indløser recept på statiner i henholdsvis det sidste kvartal og år, 2022-2023  "}]
[]
["Forsiden"]
[]
[]
[]
["Andelen af ældre, der indløser recept på 5+ og 10+ lægemidler i de sidste tre måneder af livet (det sid-ste kvartal), samt andelen af ældre der indløser recept på statiner i henholdsvis det sidste kvartal og år, 2022-2023"]
[]
["Sundhedsråd","5+ lægemidler (Polyfarmaci i alt)","10+ lægemidler (Hyperpolyfarmaci)","Det sidste kvartal","Det sidste år"]
["Fyn (Syddanmark)",82.8,37.4,16.2,28.7]
["Horsens (Midtjylland)",84.2,40.200000000000003,20.5,32.9]
["Hovedstaden (Hovedstaden)",77.5,34.700000000000003,15.3,28]
["Hovedstaden Nord (Hovedstaden)",79.5,35.4,17.2,27.9]
["Hovedstaden Syd & Vest (Hovedstaden)",79.599999999999994,36.6,20,35]
["Kronjylland (Midtjylland)",86.3,44.6,20.399999999999999,33]
["Limfjorden (Nordjylland)",84.9,43.4,20.8,33.700000000000003]
["Midt (Midtjylland)",86.2,40.5,19.399999999999999,33.9]
["Midt- og Vestsjælland (Sjælland)",80.3,34,19.399999999999999,32.299999999999997]
["Nordsjælland (Hovedstaden)",79.900000000000006,37,17.399999999999999,29.9]
["Sydvestjylland (Syddanmark)",85.5,39.799999999999997,20.9,34.1]
["Sønderjylland (Syddanmark)",82.7,39.5,18.8,30.4]
["Trekantsområdet (Syddanmark)",83.1,36.5,18.600000000000001,31.2]
["Vendsyssel (Nordjylland)",82.5,36.299999999999997,17.8,29.8]
["Vestjylland (Midtjylland)",85.9,43.1,18.600000000000001,31.2]
["Østsjælland og øerne (Sjælland)",78.5,33.200000000000003,19.5,31.4]
["Aarhus (Midtjylland)",80.7,35.9,17.5,29.3]
["Landsgennemsnit",81.900000000000006,37.700000000000003,18.5,31]
["Anm.: Opgørelserne er lavet for de afdøde i 2022-2023, da der ikke var data tilgængeligt for Lægemiddelstatistikregistret i 2024 på opgørelsestidspunktet. I begge figurer er antibiotika ikke medtaget, da afgrænsningen tager udgangspunkt i de lægemidler, der inkluderes i Sundhedsdatastyrelsens opgørelse af polyfarmaci. Det sidste kvartal dækker over de sidste tre levemåneder."]
["Kilde: Danmarks Statistik, Sundhedsdatastyrelsen og egne beregninger."]

{"sheet":"Tabel 19","index":20,"n_rows":30,"n_cols":8,"rows_kept":30,"cut":false,"hidden":false,"merged":[[29,0,29,5],[59,1,59,3],[60,1,60,3],[9,1,9,3],[9,4,9,6]]}
[]
[{"$f":"Forside!A30","v":"Tabel 19"},{"$f":"Forside!B30","v":"Antallet af sygehusophold i det sidste leveår pr. 1.000 ældre, 2022-2024"}]
[]
["Forsiden"]
[]
[]
[]
["Antallet af sygehusophold i det sidste leveår pr. 1.000 ældre, 2022-2024"]
[]
[" ","Akutte sygehusophold",null,null,"Planlagte sygehusophold",null,null," "]
["Sundhedsråd","Korte besøg \n(0-4 timer)","Længerevarende besøg \n(4-12 timer)","Indlæggelser \n(12+ timer)","Korte besøg \n(0-4 timer)","Længerevarende besøg \n(4-12 timer)","Indlæggelser \n(12+ timer)","Samlet"]
["Fyn (Syddanmark)",321.3,404.9,1448.9,4060.8,876.7,99.4,7212]
["Horsens (Midtjylland)",189.8,255.9,1401.9,3263.4,631.70000000000005,74.8,5817.5]
["Hovedstaden (Hovedstaden)",292.5,459.7,1682.2,3789.6,701.8,129.30000000000001,7055.1]
["Hovedstaden Nord (Hovedstaden)",237.1,533.29999999999995,1707.9,3988.7,560.20000000000005,120.6,7147.8]
["Hovedstaden Syd & Vest (Hovedstaden)",338.8,474.3,1857.1,3993.8,759,118.2,7541.2]
["Kronjylland (Midtjylland)",184,329.5,1264.3,2976.2,793.6,61.5,5609.1]
["Limfjorden (Nordjylland)",222,354,1457.2,3258.7,606,74.5,5972.4]
["Midt (Midtjylland)",139,259.8,1564.7,3217.1,434,86.7,5701.3]
["Midt- og Vestsjælland (Sjælland)",242.8,401.8,1680.2,3469.6,688.6,112,6595]
["Nordsjælland (Hovedstaden)",315.8,558.6,1677.1,3926.3,546.29999999999995,132,7156.1]
["Sydvestjylland (Syddanmark)",194.3,288.89999999999998,1516.6,3827.1,668.4,134.6,6629.9]
["Sønderjylland (Syddanmark)",283,297,1529.7,4015.6,691.1,95.7,6912.1]
["Trekantsområdet (Syddanmark)",296.5,315.7,1546.5,4075.4,582.6,108.2,6924.9]
["Vendsyssel (Nordjylland)",261.2,371.8,1444.4,3063.8,391.3,81.400000000000006,5613.9]
["Vestjylland (Midtjylland)",129.6,352,1290.5999999999999,2971.1,865.9,78.400000000000006,5687.6]
["Østsjælland og øerne (Sjælland)",237.7,406,1717.7,3719.3,433.5,117,6631.2]
["Aarhus (Midtjylland)",195.6,218,1312.5,2945.4,572.5,75.400000000000006,5319.4]
["Landsgennemsnit",246.2,387,1556.2,3620.8,639.4,103,6552.6]
["Kilde: Danmarks Statistik, Sundhedsdatastyrelsen og egne beregninger."]

{"sheet":"Tabel 20","index":21,"n_rows":30,"n_cols":5,"rows_kept":30,"cut":false,"hidden":false,"merged":[[60,1,60,3],[61,1,61,3],[28,0,28,5],[29,0,29,5]]}
[]
[{"$f":"Forside!A31","v":"Tabel 20"},{"$f":"Forside!B31","v":"Antallet af kontakter med sygehuset uden fysisk fremmøde i det sidste leveår pr. 1.000 ældre samt det samlede antal kontakter, 2022-2024"}]
[]
["Forsiden"]
[]
[]
[]
["Antallet af kontakter med sygehuset uden fysisk fremmøde i det sidste leveår pr. 1.000 ældre samt det samlede antal kontakter, 2022-2024"]
[]
["Sundhedsråd","Planlagt virtuel kontakt","Planlagt udebesøg","Samlet kontakt uden fysisk fremmøde","Alle kontakter"]
["Fyn (Syddanmark)",1291.3,228,1519.3,8731.2999999999993]
["Horsens (Midtjylland)",740.2,228,968.2,6785.7]
["Hovedstaden (Hovedstaden)",2639.8,616.5,3256.3,10311.4]
["Hovedstaden Nord (Hovedstaden)",2863.9,325.5,3189.4,10337.200000000001]
["Hovedstaden Syd & Vest (Hovedstaden)",2769.6,458.5,3228.1,10769.3]
["Kronjylland (Midtjylland)",1221,136.69999999999999,1357.7,6966.8]
["Limfjorden (Nordjylland)",1897.1,260.39999999999998,2157.5,8129.9]
["Midt (Midtjylland)",1051.5,384,1435.5,7136.8]
["Midt- og Vestsjælland (Sjælland)",2268.8000000000002,211.1,2479.9,9074.9]
["Nordsjælland (Hovedstaden)",2572.1999999999998,518.5,3090.7,10246.799999999999]
["Sydvestjylland (Syddanmark)",1547.4,285.7,1833.1,8463]
["Sønderjylland (Syddanmark)",1171.9000000000001,236.3,1408.2,8320.2999999999993]
["Trekantsområdet (Syddanmark)",1273.5999999999999,232.6,1506.2,8431.1]
["Vendsyssel (Nordjylland)",1589.9,369.9,1959.8,7573.7]
["Vestjylland (Midtjylland)",1134.3,117.7,1252,6939.6]
["Østsjælland og øerne (Sjælland)",2474.4,302.8,2777.2,9408.4]
["Aarhus (Midtjylland)",1022.1,1226.4000000000001,2248.5,7567.9]
["Landsgennemsnit",1863.4,351.4,2214.8000000000002,8767.4]
["Anm.: Alle kontakter dækker over det samlede antal kontakter opgjort i tabel 9 og 10. Alle kontakter på landsplan er und-taget akut virtuel kontakt og akutte udebesøg, da det ikke opgøres i bilagene. Det er grunden til at det samlede antal afviger fra opgørelsen i hovedrapporten."]
["Kilde: Danmarks Statistik, Sundhedsdatastyrelsen og egne beregninger."]